bitfinex-derivatives/quotes_BTCF0:USTF0_20210111
["timestamp","ask_amount","ask_price","bid_price","bid_amount"]
[1610333507736,2.90860844,36627.0,36617.0,1.5]
[1610333507737,0.00033626,36621.0,36617.0,1.5]
[1610333507936,0.00033626,36621.0,36618.0,1.5]
[1610333508136,0.13632608,36619.0,36618.0,1.5]
[1610333508536,0.13632608,36619.0,36618.0,0.5]
[1610333508736,0.13632608,36619.0,36617.0,0.5]
[1610333508936,0.13632608,36619.0,36618.0,1.0]
[1610333509337,0.13632608,36619.0,36618.0,0.5]
[1610333509737,3.00329844,36627.0,36618.0,1.5]
[1610333510136,3.00329844,36627.0,36617.0,0.5]
[1610333510137,0.09469,36627.0,36619.0,1.5]
[1610333510340,0.09469,36627.0,36619.0,1.4754]
[1610333510540,0.09469,36627.0,36619.0,0.5]
[1610333510739,0.00033629,36626.0,36618.0,1.4633]
[1610333510940,0.00033629,36626.0,36618.0,1.9217]
[1610333511340,0.00033629,36626.0,36618.0,1.8687]
[1610333511541,0.00033629,36626.0,36618.0,0.7332]
[1610333511743,0.00033629,36626.0,36619.0,0.6359]
[1610333511941,0.0814,36625.0,36619.0,0.02821]
[1610333512142,0.13632608,36620.0,36593.0,1.0]
[1610333512543,0.03398019,36619.0,36593.0,1.0]
[1610333512744,2.8903656,36600.0,36593.0,0.9974]
[1610333512944,3.0064956,36600.0,36593.0,0.9806]
[1610333513143,0.00033648,36599.0,36593.0,0.9378]
[1610333513343,0.00033648,36599.0,36593.0,0.8548]
[1610333513544,0.00033648,36599.0,36561.0,3.7898]
[1610333513743,1.50033648,36599.0,36561.0,3.7898]
[1610333513945,3.3282,36595.0,36546.0,3.8531]
[1610333514144,0.13632608,36547.0,36516.0,0.13632608]
[1610333514345,0.23613608,36547.0,36516.0,0.13632608]
[1610333514744,0.0003367,36546.0,36516.0,0.13632608]
[1610333515344,0.0003367,36546.0,36467.0,1.5]
[1610333515744,0.0003367,36546.0,36468.0,0.2823]
[1610333515943,0.0003367,36546.0,36517.0,0.5]
[1610333516144,0.13632608,36518.0,36517.0,0.61016]
[1610333516946,0.13632608,36518.0,36517.0,2.11016]
[1610333517148,0.13632608,36518.0,36517.0,1.61016]
[1610333517547,0.09625,36539.0,36517.0,1.61016]
[1610333517946,0.09981,36547.0,36518.0,1.0]
[1610333518146,0.00033687,36538.0,36530.0,0.13632608]
[1610333518346,0.00033684,36546.0,36530.0,0.13632608]
[1610333518746,0.00033684,36537.0,36519.0,1.0]
[1610333518946,0.00033684,36545.0,36531.0,1.0]
[1610333519146,0.00033682,36536.0,36531.0,1.07905]
[1610333519548,0.0003368,36544.0,36532.0,1.0]
[1610333519746,0.0003368,36535.0,36532.0,1.0]
[1610333519946,0.0003368,36543.0,36532.0,1.0]
[1610333520148,0.0003368,36543.0,36542.0,0.13632608]
[1610333520347,2.5787452,36554.0,36542.0,0.08571]
[1610333520548,2.90281596,36559.0,36542.0,0.08571]
[1610333520747,0.00033671,36553.0,36542.0,0.58571]
[1610333520947,0.00033671,36558.0,36542.0,0.5]
[1610333521147,0.00033671,36558.0,36542.0,0.59083]
[1610333521348,0.00033669,36552.0,36542.0,0.59083]
[1610333521550,0.07176,36556.0,36543.0,1.5]
[1610333521749,0.00033669,36551.0,36543.0,1.5]
[1610333522151,1.0,36548.0,36544.0,0.49637048]
[1610333522349,1.10452,36548.0,36544.0,0.49637048]
[1610333522549,0.00033678,36547.0,36545.0,1.0]
[1610333522951,0.00033678,36547.0,36545.0,1.5]
[1610333523151,0.00033678,36547.0,36546.0,1.0]
[1610333523351,0.00033678,36547.0,36546.0,1.5]
[1610333524152,0.170347,36547.0,36546.0,1.5]
[1610333524351,0.170347,36547.0,36546.0,2.0]
[1610333524951,0.170347,36547.0,36546.0,1.9727]
[1610333525151,0.170347,36547.0,36546.0,1.7548]
[1610333525351,0.170347,36547.0,36546.0,1.658]
[1610333525752,0.170347,36547.0,36546.0,1.0]
[1610333526253,6.170347,36547.0,36546.0,1.0]
[1610333526853,6.13666286,36547.0,36546.0,2.0]
[1610333527452,6.13666286,36547.0,36546.0,1.8543]
[1610333528053,0.13666286,36547.0,36546.0,1.8543]
[1610333529956,0.21144286,36547.0,36546.0,1.8543]
[1610333531863,0.21144286,36547.0,36546.0,1.1564]
[1610333532064,6.21144286,36547.0,36546.0,1.1564]
[1610333532260,6.21144286,36547.0,36546.0,1.6564]
[1610333532458,6.24513859,36547.0,36546.0,0.3195]
[1610333532658,6.24513859,36547.0,36512.0,3.3728]
[1610333532659,8.25803859,36547.0,36512.0,3.3728]
[1610333532858,8.22434286,36547.0,36512.0,3.1522]
[1610333533059,2.91379595,36532.0,36512.0,3.0997]
[1610333533259,2.98664595,36532.0,36483.0,1.0]
[1610333533461,2.47608406,36513.0,36483.0,1.0]
[1610333533660,2.58123406,36513.0,36483.0,0.49592352]
[1610333533861,0.10515,36513.0,36483.0,0.49592352]
[1610333534063,0.10515,36513.0,36506.0,1.0]
[1610333534262,0.13632608,36507.0,36506.0,1.0]
[1610333535665,0.13632608,36507.0,36506.0,2.0]
[1610333535867,0.13632608,36507.0,36506.0,1.32786315]
[1610333536066,0.13632608,36507.0,36506.0,1.0]
[1610333536666,0.13632608,36507.0,36506.0,1.5]
[1610333537066,0.13632608,36507.0,36506.0,1.49598866]
[1610333540272,0.1366631,36507.0,36506.0,1.49598866]
[1610333544978,0.1366631,36507.0,36506.0,1.46468866]
[1610333545179,0.1366631,36507.0,36506.0,1.45478866]
[1610333545978,0.1366631,36507.0,36506.0,1.37228866]
[1610333546177,0.27381587,36507.0,36506.0,0.91288866]
[1610333546378,0.35511587,36507.0,36506.0,0.54918866]
[1610333546577,0.35511587,36507.0,36506.0,0.5]
[1610333546778,0.35511587,36507.0,36485.0,0.02928866]
[1610333546978,0.35511587,36507.0,36465.0,0.10036]
[1610333547181,0.35511587,36507.0,36465.0,0.01806]
[1610333547380,2.85983742,36488.0,36465.0,0.01806]
[1610333547579,2.93700742,36488.0,36465.0,0.01806]
[1610333547979,0.03407143,36487.0,36415.0,2.0661]
[1610333548179,0.13632608,36460.0,36447.0,0.13632608]
[1610333550082,0.13632608,36460.0,36459.0,1.0]
[1610333550284,0.13632608,36460.0,36459.0,1.24078608]
[1610333550682,0.07717,36488.0,36459.0,1.10446]
[1610333551283,0.91217,36490.0,36459.0,1.10446]
[1610333551484,0.00033728,36487.0,36459.0,0.10446]
[1610333551683,0.00033728,36489.0,36460.0,1.0]
[1610333551883,0.00033726,36486.0,36460.0,1.0]
[1610333552083,0.00033726,36486.0,36459.0,0.10446]
[1610333552283,0.00033726,36488.0,36467.0,0.13632608]
[1610333552483,0.00033726,36485.0,36467.0,0.23620608]
[1610333552685,0.00033724,36487.0,36468.0,1.0]
[1610333553084,2.86393366,36506.0,36469.0,0.5]
[1610333553085,2.69127087,36506.0,36469.0,0.5]
[1610333553285,0.02844,36507.0,36469.0,1.5]
[1610333553485,0.00033714,36505.0,36469.0,1.5]
[1610333553686,0.00033714,36505.0,36489.0,0.019]
[1610333553886,0.00033707,36506.0,36489.0,0.09476]
[1610333554088,0.00033703,36504.0,36489.0,0.09476]
[1610333554287,0.00033701,36505.0,36503.0,0.13632608]
[1610333554488,0.13632608,36510.0,36503.0,0.21160608]
[1610333554889,0.08767,36534.0,36504.0,1.5]
[1610333555090,0.00033694,36532.0,36504.0,1.5]
[1610333555288,0.00033694,36533.0,36504.0,1.5]
[1610333555492,0.00033694,36533.0,36505.0,0.5]
[1610333555690,0.00033692,36531.0,36505.0,0.5]
[1610333555889,0.00033692,36532.0,36504.0,2.0]
[1610333556090,0.0003369,36530.0,36504.0,2.0]
[1610333556289,0.0003369,36530.0,36513.0,0.13632608]
[1610333556489,0.0003369,36531.0,36513.0,0.21017608]
[1610333556689,0.00033688,36529.0,36513.0,0.21017608]
[1610333556889,0.00033688,36530.0,36514.0,1.0]
[1610333557093,0.00033688,36530.0,36514.0,1.5]
[1610333557290,0.00033688,36528.0,36515.0,1.0]
[1610333557491,0.00033688,36529.0,36517.0,5.0]
[1610333557690,0.00033688,36527.0,36517.0,5.0]
[1610333558093,0.00033685,36528.0,36518.0,1.0]
[1610333558290,0.00033685,36544.0,36527.0,0.13632608]
[1610333558490,0.03367783,36553.0,36527.0,0.22527608]
[1610333558891,0.03401459,36553.0,36528.0,0.5]
[1610333559093,0.00033676,36553.0,36528.0,0.5]
[1610333559292,1.0,36554.0,36528.0,0.5]
[1610333559293,0.00033672,36552.0,36529.0,0.5]
[1610333559492,0.00033672,36552.0,36529.0,1.5]
[1610333559692,0.00033672,36552.0,36529.0,1.4714]
[1610333559892,0.68760909,36553.0,36530.0,0.5]
[1610333560094,0.0003368,36551.0,36530.0,0.5]
[1610333560292,0.13632608,36531.0,36530.0,1.446]
[1610333560493,0.13632608,36531.0,36530.0,1.0]
[1610333560893,0.13666293,36531.0,36530.0,1.0]
[1610333561292,0.13666293,36531.0,36530.0,1.5]
[1610333561492,0.13666293,36531.0,36530.0,2.0]
[1610333561892,0.17035785,36531.0,36530.0,1.5]
[1610333562092,0.17035785,36531.0,36530.0,2.0]
[1610333562592,0.17035785,36531.0,36530.0,1.9172]
[1610333562793,0.25195785,36531.0,36530.0,1.9172]
[1610333563192,0.25195785,36531.0,36530.0,1.4023]
[1610333563395,0.25195785,36531.0,36530.0,1.1293]
[1610333563592,6.2519581,36531.0,36530.0,0.9977]
[1610333563792,6.31938122,36531.0,36530.0,0.9152]
[1610333564195,6.31938122,36531.0,36530.0,1.9152]
[1610333564592,6.31938122,36531.0,36530.0,0.8334]
[1610333564992,6.31938122,36531.0,36530.0,0.8269]
[1610333565393,6.31938122,36531.0,36530.0,0.2924]
[1610333565594,6.31938122,36531.0,36527.0,1.0]
[1610333565794,6.31938122,36531.0,36527.0,0.9641]
[1610333565996,0.10149428,36530.0,36514.0,1.0]
[1610333566395,0.13632608,36515.0,36514.0,1.0]
[1610333566794,0.17038092,36515.0,36489.0,0.019]
[1610333567195,0.03405112,36514.0,36489.0,0.019]
[1610333567396,0.03405112,36514.0,36506.0,1.0]
[1610333567596,2.87579696,36510.0,36506.0,1.09561]
[1610333567796,0.00033711,36509.0,36507.0,1.0]
[1610333568398,0.13632608,36508.0,36507.0,1.0]
[1610333568599,2.89529357,36519.0,36508.0,1.0]
[1610333568798,0.000337,36513.0,36508.0,1.0]
[1610333569199,0.00033696,36518.0,36509.0,1.0]
[1610333569399,2.9099951,36526.0,36509.0,1.0]
[1610333569599,0.00033688,36517.0,36509.0,1.0]
[1610333569798,0.00033688,36517.0,36508.0,0.5]
[1610333569999,0.00033686,36525.0,36510.0,1.0]
[1610333570199,2.91488226,36530.0,36510.0,1.0]
[1610333570399,0.13632608,36525.0,36524.0,0.13632608]
[1610333570598,0.13632608,36525.0,36511.0,1.0]
[1610333570799,0.13666292,36525.0,36511.0,1.0]
[1610333571000,0.00033684,36524.0,36510.0,0.5]
[1610333571399,0.13632608,36525.0,36512.0,1.0]
[1610333571599,0.13632608,36525.0,36524.0,0.5]
[1610333572000,0.13632608,36525.0,36524.0,0.61659]
[1610333572200,0.13632608,36525.0,36524.0,0.11659]
[1610333572400,0.13632608,36525.0,36524.0,1.25291608]
[1610333572600,0.13632608,36525.0,36524.0,1.75291608]
[1610333573000,2.93095512,36526.0,36524.0,2.25291608]
[1610333573400,2.93095512,36526.0,36525.0,1.5]
[1610333573703,2.9429204,36528.0,36525.0,1.5]
[1610333573900,2.9429204,36528.0,36525.0,2.5]
[1610333574101,2.9429204,36528.0,36526.0,1.5]
[1610333574301,0.13632608,36527.0,36526.0,0.4206]
[1610333574500,0.13632608,36527.0,36525.0,1.0]
[1610333574700,0.13666295,36527.0,36526.0,1.0]
[1610333574901,0.13632608,36527.0,36526.0,0.9181]
[1610333575101,0.1366631,36527.0,36526.0,1.4181]
[1610333575503,0.13666311,36527.0,36526.0,1.4181]
[1610333576303,0.13666311,36527.0,36526.0,1.9181]
[1610333577503,3.10615806,36528.0,36526.0,1.9181]
[1610333577703,3.10615806,36528.0,36526.0,2.02203]
[1610333577906,3.10965312,36532.0,36527.0,1.5]
[1610333578205,3.10965312,36532.0,36527.0,2.0]
[1610333578404,0.00033682,36531.0,36528.0,1.5]
[1610333578604,0.00033682,36531.0,36528.0,2.0]
[1610333578810,0.00033679,36535.0,36529.0,1.0]
[1610333579004,0.00033679,36535.0,36529.0,2.0]
[1610333579204,0.00033676,36530.0,36529.0,2.0]
[1610333579404,0.00033676,36535.0,36530.0,0.5]
[1610333579605,3.25523661,36536.0,36530.0,0.5]
[1610333579806,3.25523661,36536.0,36534.0,6.0]
[1610333580006,3.26687308,36556.0,36534.0,6.08319]
[1610333580206,0.00033676,36535.0,36534.0,6.08319]
[1610333580406,0.13632608,36550.0,36534.0,6.21951608]
[1610333580606,0.00033676,36555.0,36534.0,6.21951608]
[1610333580806,2.97451567,36538.0,36534.0,6.21951608]
[1610333581006,2.97451567,36538.0,36535.0,0.5]
[1610333581207,0.9823694,36545.0,36535.0,0.5]
[1610333581408,1.0,36572.0,36536.0,1.0]
[1610333581609,1.0,36572.0,36536.0,2.5]
[1610333581807,4.0701,36573.0,36536.0,2.5]
[1610333582007,4.05243652,36573.0,36536.0,1.0]
[1610333582208,3.43161947,36599.0,36537.0,1.5]
[1610333582407,3.43161947,36599.0,36537.0,3.5]
[1610333582408,0.0003365,36572.0,36537.0,3.5]
[1610333582607,0.13666256,36580.0,36538.0,1.7887]
[1610333582808,0.00033646,36571.0,36538.0,3.0]
[1610333583007,0.00033646,36571.0,36539.0,0.2959]
[1610333583208,0.10007,36604.0,36540.0,1.5]
[1610333583409,0.00033642,36570.0,36540.0,1.5]
[1610333583607,0.03397867,36603.0,36541.0,1.2973]
[1610333583808,0.03397867,36603.0,36549.0,1.0]
[1610333584010,0.03397867,36603.0,36550.0,1.5]
[1610333584208,0.03397441,36608.0,36550.0,1.5]
[1610333584407,0.13632608,36609.0,36551.0,0.2781]
[1610333584608,0.03363636,36608.0,36552.0,1.5]
[1610333585007,0.03397271,36608.0,36552.0,1.5]
[1610333585207,0.03397271,36608.0,36553.0,0.2695]
[1610333585410,0.03397271,36608.0,36554.0,1.5]
[1610333585808,0.03397271,36608.0,36555.0,0.2775]
[1610333586007,0.03397271,36608.0,36556.0,1.5]
[1610333586207,0.13632608,36609.0,36556.0,1.5]
[1610333586407,3.36187,36624.0,36550.0,0.5]
[1610333586408,3.36187,36624.0,36557.0,0.2743]
[1610333586610,3.36187,36624.0,36557.0,0.34524]
[1610333586807,0.0003363,36623.0,36557.0,0.34524]
[1610333587207,3.12847432,36608.0,36557.0,0.34524]
[1610333587808,3.12847432,36608.0,36599.0,1.0]
[1610333588008,3.12847432,36608.0,36599.0,1.08796]
[1610333588408,0.13632608,36600.0,36599.0,1.08796]
[1610333588809,3.12847432,36608.0,36599.0,1.08796]
[1610333589408,1.0,36617.0,36600.0,1.5]
[1610333589808,3.12898558,36631.0,36601.0,1.0]
[1610333590208,3.13731317,36634.0,36599.0,0.08796]
[1610333590408,3.13731317,36634.0,36628.0,0.13632608]
[1610333590811,3.13731317,36634.0,36629.0,1.0]
[1610333591213,3.13731317,36634.0,36627.0,0.08729]
[1610333591612,3.25333317,36634.0,36629.0,0.5]
[1610333592012,3.25333317,36634.0,36629.0,1.0]
[1610333592212,3.25333317,36634.0,36629.0,0.5]
[1610333592413,0.13632608,36630.0,36629.0,0.5]
[1610333592612,0.13632608,36630.0,36604.0,0.13632608]
[1610333593013,0.13632608,36630.0,36629.0,0.5]
[1610333593412,0.13632608,36630.0,36629.0,1.0]
[1610333594014,0.13632608,36630.0,36629.0,2.0]
[1610333594214,3.1131447,36630.0,36629.0,2.0]
[1610333594415,3.1131447,36630.0,36629.0,1.5]
[1610333594616,3.1131447,36630.0,36629.0,1.1758]
[1610333594815,3.1131447,36630.0,36629.0,1.3953]
[1610333595016,3.1131447,36630.0,36600.0,0.1536]
[1610333595217,3.2047847,36630.0,36559.0,0.8453]
[1610333595417,3.2047847,36630.0,36601.0,1.3926]
[1610333595620,5.0,36610.0,36601.0,1.3299]
[1610333596020,2.94460979,36606.0,36601.0,1.3299]
[1610333596218,2.94460979,36606.0,36601.0,1.0]
[1610333596418,0.13632608,36602.0,36573.0,1.0]
[1610333596619,0.13632608,36602.0,36601.0,0.5]
[1610333596819,0.21637608,36602.0,36601.0,0.5]
[1610333597220,0.21637608,36602.0,36591.0,0.5]
[1610333597419,0.21637608,36602.0,36601.0,1.0]
[1610333597819,0.21637608,36602.0,36601.0,1.5]
[1610333597820,0.13632608,36602.0,36601.0,1.5]
[1610333598420,1.0,36604.0,36601.0,1.63632608]
[1610333599020,0.817,36604.0,36602.0,1.0]
[1610333599220,3.05807456,36630.0,36602.0,1.5]
[1610333599420,2.96643456,36630.0,36603.0,7.0]
[1610333599622,2.9705757,36639.0,36603.0,7.5]
[1610333599820,2.9705757,36639.0,36604.0,1.0]
[1610333600023,2.97485517,36644.0,36604.0,1.10801]
[1610333600222,0.00033608,36638.0,36604.0,1.60801]
[1610333600423,0.13632608,36622.0,36621.0,0.13632608]
[1610333600824,0.13632608,36622.0,36621.0,0.63632608]
[1610333601227,0.13632608,36622.0,36621.0,1.63632608]
[1610333601424,0.13632608,36622.0,36621.0,1.5]
[1610333602228,0.13632608,36622.0,36621.0,1.3257]
[1610333602826,0.08789,36623.0,36621.0,1.3257]
[1610333603028,0.10074,36642.0,36621.0,1.90575]
[1610333603225,0.10074,36642.0,36622.0,1.5]
[1610333603426,0.00033612,36641.0,36622.0,1.5]
[1610333603626,0.00033612,36641.0,36623.0,1.0]
[1610333603829,0.00033612,36641.0,36623.0,1.5]
[1610333604230,0.00033612,36641.0,36624.0,1.5]
[1610333604430,0.00033605,36647.0,36637.0,0.13632608]
[1610333604833,0.00033605,36640.0,36638.0,0.5]
[1610333605031,0.00033602,36647.0,36638.0,1.5]
[1610333605231,0.00033602,36639.0,36638.0,1.5]
[1610333605432,0.07769602,36639.0,36638.0,1.0]
[1610333605631,0.07736,36639.0,36632.0,0.5]
[1610333605831,0.07769607,36639.0,36632.0,0.5]
[1610333606031,0.00033607,36638.0,36632.0,0.5]
[1610333606232,0.00033607,36638.0,36633.0,1.0]
[1610333606432,0.13632608,36634.0,36633.0,1.0]
[1610333606834,0.17027764,36634.0,36633.0,0.5]
[1610333607035,0.17027764,36634.0,36633.0,1.0]
[1610333607436,0.17027764,36634.0,36633.0,2.0]
[1610333607636,0.17027764,36634.0,36633.0,1.5]
[1610333608034,0.17027764,36634.0,36633.0,2.0]
[1610333609439,0.17027764,36634.0,36633.0,1.4096]
[1610333609638,0.17027764,36634.0,36633.0,1.2256]
[1610333609838,0.17027764,36634.0,36599.0,4.007]
[1610333610041,4.75587764,36634.0,36579.0,3.9813]
[1610333610238,10.72192608,36634.0,36633.0,0.4182]
[1610333610440,10.72192608,36634.0,36600.0,0.5]
[1610333610639,0.16817622,36629.0,36600.0,0.5]
[1610333610839,0.03397398,36628.0,36600.0,0.3764]
[1610333611040,0.03397398,36628.0,36601.0,1.0]
[1610333611241,2.96698703,36604.0,36601.0,0.976]
[1610333611441,3.04928703,36604.0,36601.0,0.8953]
[1610333611642,0.2022696,36603.0,36601.0,0.583]
[1610333611840,0.10130308,36603.0,36600.0,0.3487]
[1610333612041,0.10130308,36603.0,36579.0,3.8992]
[1610333612242,6.03400137,36602.0,36546.0,1.0]
[1610333612443,0.13632608,36547.0,36546.0,1.0]
[1610333612645,0.13632608,36547.0,36546.0,0.946]
[1610333612845,0.13632608,36547.0,36523.0,0.13632608]
[1610333613045,0.13666282,36547.0,36523.0,0.13632608]
[1610333613445,0.00033679,36546.0,36523.0,0.13632608]
[1610333613646,0.00033679,36546.0,36519.0,4.5444]
[1610333613845,0.00033679,36546.0,36524.0,1.0]
[1610333614045,0.00033679,36546.0,36529.0,0.5]
[1610333614247,0.0340204,36546.0,36529.0,0.5]
[1610333614446,0.0340204,36546.0,36536.0,0.5]
[1610333614646,0.0340204,36546.0,36536.0,0.59503]
[1610333614846,0.0340204,36546.0,36536.0,0.09503]
[1610333615046,0.09805,36554.0,36524.0,0.60299]
[1610333615047,0.03401956,36553.0,36537.0,1.0]
[1610333615249,0.00033683,36545.0,36537.0,1.08362]
[1610333615647,0.03401695,36552.0,36537.0,1.08362]
[1610333615847,0.0003368,36544.0,36538.0,1.0]
[1610333616049,0.00033677,36551.0,36538.0,1.0]
[1610333616449,0.0801,36562.0,36545.0,0.13632608]
[1610333616649,0.0801,36562.0,36545.0,0.24804608]
[1610333616851,0.00033672,36561.0,36545.0,0.24804608]
[1610333617053,0.00033672,36561.0,36553.0,4.49646621]
[1610333617249,2.47775457,36574.0,36553.0,0.09948]
[1610333617649,2.96201588,36589.0,36553.0,0.09948]
[1610333617851,2.96201588,36589.0,36554.0,1.0]
[1610333618050,0.00033659,36573.0,36555.0,1.0]
[1610333618250,0.00033659,36588.0,36555.0,1.0]
[1610333618452,0.13632608,36556.0,36555.0,1.0]
[1610333618651,0.13632608,36556.0,36555.0,0.5]
[1610333619052,0.07176241,36553.0,36546.0,0.5]
[1610333619452,0.07176241,36553.0,36545.0,0.11172]
[1610333619652,0.07176241,36553.0,36547.0,1.0]
[1610333620252,0.07176241,36553.0,36548.0,0.5]
[1610333620455,0.13632608,36549.0,36548.0,0.5]
[1610333620652,0.13632608,36549.0,36545.0,0.11172]
[1610333620853,0.13632608,36549.0,36548.0,1.0]
[1610333621253,1.13632608,36549.0,36548.0,0.9178]
[1610333621453,1.13666295,36549.0,36548.0,0.8486]
[1610333621654,1.13666295,36549.0,36548.0,0.6289]
[1610333621855,1.13666295,36549.0,36548.0,0.5167]
[1610333622056,1.13666295,36549.0,36547.0,0.5]
[1610333622255,1.13666295,36549.0,36548.0,0.5]
[1610333623257,1.13666295,36549.0,36548.0,1.5]
[1610333623258,0.13666295,36549.0,36548.0,1.5]
[1610333623457,0.13666295,36549.0,36548.0,2.0]
[1610333623659,0.00033687,36549.0,36548.0,2.0]
[1610333624058,0.07176241,36553.0,36548.0,2.0]
[1610333624059,0.00033684,36552.0,36548.0,2.0]
[1610333624259,0.00033684,36549.0,36548.0,2.0]
[1610333624460,0.13632608,36549.0,36548.0,1.0]
[1610333624859,0.13632608,36549.0,36548.0,2.0]
[1610333625061,0.13632608,36549.0,36548.0,1.974]
[1610333625260,0.24222296,36549.0,36548.0,1.2942]
[1610333625461,0.24222296,36549.0,36548.0,1.0]
[1610333625661,0.24222296,36549.0,36548.0,0.9325]
[1610333625860,0.24222296,36549.0,36548.0,1.4325]
[1610333626060,0.24222304,36549.0,36548.0,1.4325]
[1610333626261,0.24222304,36549.0,36548.0,1.9325]
[1610333626460,0.13666304,36549.0,36548.0,1.9325]
[1610333626860,0.13632608,36549.0,36548.0,1.9325]
[1610333627260,0.13632608,36549.0,36548.0,2.9325]
[1610333628061,0.13632608,36549.0,36548.0,2.9158]
[1610333628461,0.136663,36549.0,36548.0,2.8983]
[1610333628861,0.13632608,36549.0,36548.0,2.8983]
[1610333629260,0.13632608,36549.0,36548.0,1.8983]
[1610333631864,0.13632608,36549.0,36548.0,2.00232]
[1610333632665,0.13632608,36549.0,36548.0,1.99912]
[1610333632865,0.13632608,36549.0,36548.0,1.97492]
[1610333633665,0.13632608,36549.0,36548.0,1.7939]
[1610333633865,0.22882608,36549.0,36548.0,1.7939]
[1610333634066,0.22916304,36549.0,36548.0,1.6884]
[1610333634266,0.22916304,36549.0,36548.0,1.57]
[1610333634466,0.22916304,36549.0,36548.0,0.9527]
[1610333634666,0.31026304,36549.0,36548.0,0.5021]
[1610333634866,0.91806304,36549.0,36548.0,0.4337]
[1610333635067,0.95176296,36549.0,36548.0,0.3954]
[1610333635268,6.95176296,36549.0,36548.0,0.3954]
[1610333635467,6.95176296,36549.0,36548.0,0.3269]
[1610333635668,6.91806304,36549.0,36548.0,0.2592]
[1610333635868,6.83696304,36549.0,36548.0,0.2592]
[1610333636069,6.83696304,36549.0,36548.0,0.7592]
[1610333636267,9.89361185,36549.0,36548.0,0.7592]
[1610333636468,6.83696304,36549.0,36548.0,0.7592]
[1610333637271,0.83696304,36549.0,36548.0,0.7592]
[1610333637470,0.83696304,36549.0,36548.0,1.7592]
[1610333637670,0.83662608,36549.0,36548.0,1.7592]
[1610333638073,0.83662608,36549.0,36548.0,1.7297]
[1610333638271,0.83696294,36549.0,36548.0,1.7297]
[1610333638673,0.22916294,36549.0,36548.0,1.7297]
[1610333638874,0.26285,36549.0,36548.0,1.7297]
[1610333640275,0.00535,36549.0,36548.0,1.7297]
[1610333640477,2.7324162,36552.0,36548.0,1.96602608]
[1610333640877,0.00033675,36551.0,36549.0,1.0]
[1610333641280,0.00033675,36555.0,36549.0,1.0]
[1610333641479,3.5852,36561.0,36550.0,1.0]
[1610333641678,0.00033673,36554.0,36550.0,1.0]
[1610333641879,4.1379,36563.0,36550.0,1.0]
[1610333642078,4.1379,36563.0,36551.0,1.0]
[1610333642280,0.00033666,36562.0,36551.0,1.0]
[1610333642480,0.00033666,36562.0,36550.0,1.5]
[1610333642679,0.00033666,36562.0,36550.0,2.0]
[1610333642880,0.00033666,36562.0,36551.0,0.5]
[1610333643080,4.1379,36563.0,36551.0,0.5]
[1610333643280,0.00033656,36561.0,36551.0,2.0]
[1610333643481,0.1556,36591.0,36552.0,0.5]
[1610333643680,3.08787835,36596.0,36552.0,0.5]
[1610333643883,0.03398945,36590.0,36552.0,0.5]
[1610333644080,0.10129473,36595.0,36553.0,1.0]
[1610333644283,0.03398872,36589.0,36553.0,1.5]
[1610333644482,0.03398872,36589.0,36588.0,0.13632608]
[1610333644681,3.08934746,36601.0,36588.0,0.13632608]
[1610333644682,0.03398771,36594.0,36588.0,0.20693608]
[1610333644881,0.0673024,36600.0,36588.0,0.20693608]
[1610333645081,0.03398358,36593.0,36588.0,0.20693608]
[1610333645281,0.03398358,36593.0,36589.0,1.5]
[1610333645482,0.10128461,36600.0,36589.0,1.5]
[1610333645681,7.26545626,36606.0,36589.0,1.5]
[1610333645682,0.10126591,36605.0,36589.0,1.5]
[1610333645882,0.03398016,36599.0,36590.0,0.5]
[1610333646281,0.10126654,36605.0,36590.0,0.1746]
[1610333646484,0.03397849,36598.0,36591.0,1.0]
[1610333646681,0.03397731,36604.0,36591.0,1.5]
[1610333646881,0.03364089,36604.0,36591.0,1.1456]
[1610333647082,0.03397683,36605.0,36591.0,0.7704]
[1610333647282,0.03397662,36603.0,36592.0,0.5]
[1610333647481,0.03397615,36605.0,36592.0,2.0]
[1610333647885,0.03397615,36605.0,36592.0,1.5]
[1610333648083,0.03397615,36605.0,36592.0,0.5]
[1610333648284,0.03397615,36605.0,36593.0,0.5]
[1610333648483,0.13632608,36594.0,36593.0,0.5]
[1610333648683,0.13632608,36594.0,36593.0,1.0]
[1610333649086,0.13666246,36594.0,36593.0,1.5]
[1610333649285,0.13666246,36594.0,36593.0,2.0]
[1610333649784,0.13632608,36594.0,36593.0,2.0]
[1610333651386,0.13632608,36594.0,36593.0,8.0]
[1610333652186,2.93680802,36611.0,36593.0,8.0]
[1610333652587,0.13632608,36610.0,36605.0,0.13632608]
[1610333652986,0.13632608,36610.0,36606.0,1.5]
[1610333653186,0.13632608,36610.0,36606.0,2.08621]
[1610333653386,0.13632608,36610.0,36606.0,1.09291]
[1610333653586,0.13632608,36610.0,36607.0,1.5]
[1610333653984,0.13632608,36610.0,36607.0,2.0]
[1610333654188,0.13632608,36610.0,36608.0,0.713]
[1610333654385,0.13632608,36610.0,36608.0,1.713]
[1610333654787,0.13632608,36610.0,36608.0,0.5]
[1610333654989,3.06711872,36627.0,36609.0,0.5]
[1610333655188,3.06711872,36627.0,36609.0,2.0]
[1610333655389,0.00033623,36626.0,36610.0,1.0]
[1610333655588,3.06711872,36627.0,36610.0,2.0]
[1610333656489,0.10212,36632.0,36610.0,2.0]
[1610333656689,0.13632608,36611.0,36610.0,2.0]
[1610333656889,0.13632608,36611.0,36606.0,0.09291]
[1610333657288,0.13632608,36611.0,36610.0,1.0]
[1610333657488,0.13632608,36611.0,36610.0,2.0]
[1610333657689,0.13632608,36611.0,36610.0,1.8672]
[1610333658489,0.13632608,36611.0,36610.0,1.839]
[1610333658689,0.13632608,36611.0,36610.0,1.7977]
[1610333658890,0.13632608,36611.0,36610.0,1.7841]